[Event "45th FIDE Womens Olympiad 2024"]
[Site "Budapest"]
[Date "2024.09.11"]
[Round "1.19"]
[White "Ni, Shiqun"]
[Black "Klaasen, Robyn Julian"]
[Result "1-0"]
[ECO "B38"]
[WhiteElo "2348"]
[BlackElo "1764"]
[Annotator "ChessBase"]
[PlyCount "97"]
[EventDate "2024.09.05"]
[EventType "team-tourn"]
[EventCountry "HUN"]
[SourceTitle "playchess.com"]
[Source "ChessBase"]
[SourceQuality "1"]
[WhiteTeam "China"]
[BlackTeam "South Africa"]
[WhiteTeamCountry "CHN"]
[BlackTeamCountry "RSA"]
[TimeControl "40/5400+30:1800+30"]

1. e4 {[%emt 0:00:03]} c5 {[%emt 0:00:08]} 2. Nf3 {[%emt 0:00:05]} g6 {[%emt 0:00:17]} 3. c4 {[%emt 0:01:11]} Nc6 {[%emt 0:01:07]} 4. d4 {[%emt 0:00:12]} cxd4 {[%emt 0:00:51]} 5. Nxd4 {[%emt 0:00:04]} Bg7 {[%emt 0:02:40]} 6. Be3 {[%emt 0:00:38]} Nf6 {[%emt 0:02:27]} 7. Nc3 {[%emt 0:00:06]} d6 {[%emt 0:00:51]} 8. Be2 {[%emt 0:00:22]} O-O {[%emt 0:01:29]} 9. O-O {[%emt 0:00:14]} Bd7 {[%emt 0:04:31]} 10. Re1 {[%emt 0:03:08]} Nxd4 {[%emt 0:01:53]} 11. Bxd4 {[%emt 0:00:13]} Bc6 {[%emt 0:01:00]} 12. Qc2 {[%emt 0:00:30]} a5 {[%emt 0:05:23]} 13. b3 {[%emt 0:00:57]} Nd7 {[%emt 0:02:46]} 14. Bxg7 {[%emt 0:07:51]} Kxg7 {[%emt 0:00:07]} 15. Rad1 {[%emt 0:00:47]} Qb6 {[%emt 0:07:46]} 16. Qb2 {[%emt 0:02:05]} Kg8 {[%emt 0:01:52]} 17. Nd5 {[%emt 0:06:46]} Bxd5 {[%emt 0:05:47]} 18. exd5 {[%emt 0:00:04]} Ne5 {[%emt 0:08:43]} 19. Bf1 {[%emt 0:03:06]} Rac8 {[%emt 0:04:39]} 20. Rd4 {[%emt 0:04:37]} Rce8 {[%emt 0:17:14]} 21. Re3 {[%emt 0:09:55]} f5 {[%emt 0:11:42]} 22. h4 {[%emt 0:25:11]} Ng4 {[%emt 0:04:32]} 23. Re1 {[%emt 0:08:44]} Qc5 {[%emt 0:03:14]} 24. a3 {[%emt 0:04:17]} Nf6 {[%emt 0:02:59]} 25. Bd3 {[%emt 0:04:44]} b6 {[%emt 0:01:56]} 26. b4 {[%emt 0:06:16]} Qc7 {[%emt 0:01:08]} 27. Bc2 {[%emt 0:00:33]} axb4 {[%emt 0:01:19]} 28. axb4 {[%emt 0:01:18]} Ra8 {[%emt 0:00:51]} 29. Qc3 {[%emt 0:01:32]} Rfc8 {[%emt 0:01:06]} 30. Qe3 {[%emt 0:01:28]} Re8 {[%emt 0:01:13]} 31. Bb3 {[%emt 0:01:29]} Kg7 {[%emt 0:00:54]} 32. Rd3 {[%emt 0:00:23]} Ra3 {[%emt 0:01:26]} 33. Qd4 {[%emt 0:00:28]} Kg8 {[%emt 0:01:01]} 34. Qb2 {[%emt 0:01:56]} Qa7 {[%emt 0:00:47]} 35. Rde3 {[%emt 0:00:41]} Kf7 {[%emt 0:00:53]} 36. Re6 {[%emt 0:01:26]} Ne4 {[%emt 0:00:23]} 37. f3 {[%emt 0:02:57]} b5+ {[%emt 0:00:46]} 38. c5 {[%emt 0:01:15]} dxc5 {[%emt 0:00:33]} 39. fxe4 {[%emt 0:00:59]} c4+ {[%emt 0:00:17]} 40. Kh1 {[%emt 0:01:18]} Rxb3 {[%emt 0:00:22]} 41. Qe5 {[%emt 0:09:50]} Re3 {[%emt 0:16:42]} 42. Ra1 {[%emt 0:06:22]} Qb7 {[%emt 0:04:39]} 43. Qf4 {[%emt 0:00:15]} Rxe4 {[%emt 0:01:49]} 44. Rxe4 {[%emt 0:00:06]} Qxd5 {[%emt 0:00:41]} 45. Re5 {[%emt 0:03:28]} Qd6 {[%emt 0:00:56]} 46. Rae1 {[%emt 0:00:12]} Qxb4 {[%emt 0:01:47]} 47. Qh6 {[%emt 0:02:16]} Kg8 {[%emt 0:02:21]} 48. h5 {[%emt 0:00:10]} Qd6 {[%emt 0:02:48]} 49. Re6 {[%emt 0:01:17]} 1-0

[Event "45th FIDE Womens Olympiad 2024"]
[Site "Budapest"]
[Date "2024.09.11"]
[Round "1.20"]
[White "Nel, Hayley"]
[Black "Lu, Miaoyi"]
[Result "0-1"]
[ECO "E81"]
[WhiteElo "1753"]
[BlackElo "2438"]
[Annotator "TA"]
[PlyCount "64"]
[EventDate "2024.09.05"]
[EventType "team-tourn"]
[EventCountry "HUN"]
[SourceTitle "playchess.com"]
[Source "ChessBase"]
[SourceQuality "1"]
[WhiteTeam "South Africa"]
[BlackTeam "China"]
[WhiteTeamCountry "RSA"]
[BlackTeamCountry "CHN"]
[TimeControl "40/5400+30:1800+30"]

{[%evp 17,64,7,14,-43,-44,-40,-12,-6,0,-72,-66,-64,-65,-127,-127,-111,-97,-143,-115,-127,-109,-129,-133,-139,-148,-153,-133,-143,-116,-194,-187,-197,-194,-158,-167,-204,-192,-211,-195,-277,-281,-479,-474,-702,-702,-702,-702,-5775,-5502]} 1. c4 {[%emt 0:00:03]} Nf6 {[%emt 0:00:02]} 2. Nc3 {[%emt 0:00:18]} g6 {[%emt 0:00:03]} 3. d4 {[%emt 0:00:13]} Bg7 {[%emt 0:00:02]} 4. e4 {[%emt 0:00:13]} d6 {[%emt 0:00:02]} 5. f3 {[%emt 0:00:21]} O-O {[%emt 0:00:03]} 6. Be3 {[%emt 0:01:41]} c5 {[%emt 0:00:03]} 7. dxc5 {[%emt 0:11:56]} dxc5 {[%emt 0:00:03]} 8. Qxd8 {[%emt 0:00:37]} Rxd8 {[%emt 0:00:02]} 9. Bxc5 {[%emt 0:04:30]} Nc6 {[%emt 0:00:02]} 10. a3 {[%emt 0:09:11]} (10. Nd5 $11) 10... Nd7 $15 {[%emt 0:00:58]} 11. Be3 {[%emt 0:05:36]} Bxc3+ {[%emt 0:00:05]} 12. bxc3 {[%emt 0:00:06] The position is equal.} Nde5 {[%emt 0:00:42]} 13. f4 {[%emt 0:16:37]} (13. c5 $11) 13... Nd3+ $17 {[%emt 0:12:24]} 14. Bxd3 {[%emt 0:00:33]} Rxd3 {[%emt 0:00:03]} 15. Bd2 {[%emt 0:00:26] Black continues to play with concentration.} (15. Kf2 $15) 15... Be6 {[%emt 0:09:53][%cal Oa8d8]} 16. Nf3 {[%emt 0:03:31]} Bxc4 {[%emt 0:00:44] Black is much more active.} 17. Rb1 {[%emt 0:01:47]} (17. O-O $142) 17... Ba6 {[%emt 0:16:34]} 18. Kf2 {[%emt 0:07:22]} Na5 {[%emt 0:06:21][%cal Bc6a5,Ba5c4,Bc4e3][%mdl 32]} 19. a4 {[%emt 0:07:08]} Nc4 {[%emt 0:01:10]} 20. Be1 {[%emt 0:01:11]} Rad8 {[%emt 0:00:31]} 21. h4 {[%emt 0:03:36]} b6 {[%emt 0:16:55]} 22. Rb4 {[%emt 0:03:48]} Ne3 {[%emt 0:08:25]} 23. Rd4 {[%emt 0:11:34] White is weak on the light squares} (23. h5 $17 {is a better defense.}) 23... R8xd4 {[%emt 0:00:08]} 24. cxd4 {[%emt 0:00:36]} Ng4+ {[%emt 0:00:02]} 25. Kg3 {[%emt 0:01:07]} Nf6 $36 {[%emt 0:00:01][%mdl 2048] Black has strong initiative.} 26. e5 {[%emt 0:01:51]} Nh5+ {[%emt 0:00:02]} (26... Ne4+ 27. Kh2) 27. Kf2 {[%emt 0:02:48]} Nxf4 {[%emt 0:00:02]} 28. a5 {[%emt 0:01:04]} (28. Bd2 {was worth a try.} Nxg2 29. Bh6 (29. Kxg2 $2 Bb7 $19)) 28... Bb7 $19 {[%emt 0:02:34][%cal Of4g2] ...Nxg2! would now be deadly.} 29. axb6 $2 {[%emt 0:00:58] [#]} (29. Rf1 {was necessary.}) 29... Nxg2 $1 {[%emt 0:02:39][%mdl 512] Black is clearly winning.} 30. Kxg2 {[%emt 0:01:49]} (30. d5 $142 Bxd5 31. Nh2) (30. Rf1 Nf4) 30... Bxf3+ {[%emt 0:00:07]} (30... Rxf3 $2 31. Rf1 Rf4+ 32. Kg1 Rg4+ (32... Rxd4 33. bxa7 Rg4+ 34. Kh2 $15) 33. Kf2 axb6 34. Bb4 Rxh4 (34... Rxd4 $2 35. Bxe7 Rf4+ 36. Kg1 $19) 35. Rc1 $19) 31. Kh2 {[%emt 0:00:36]} Bxh1 {[%emt 0:00:02]} ({Less strong is} 31... Rxd4 32. Rf1 $17) 32. Kxh1 {[%emt 0:00:09]} Rd1 {[%emt 0:00:04] Weighted Error Value: White=0.77/Black=0.07 (flawless) .  Mistake:       	White=7     	---        Inaccurate:     	---       	Black=1      OK:         	White=5     	Black=8      Best:        	White=1     	Black=1      Brilliant:      	---       	Black=1} 0-1

[Event "45th FIDE Womens Olympiad 2024"]
[Site "Budapest"]
[Date "2024.09.11"]
[Round "1.21"]
[White "Samaganova, Aleksandra"]
[Black "Ushenina, Anna"]
[Result "1/2-1/2"]
[ECO "D45"]
[WhiteElo "1948"]
[BlackElo "2417"]
[Annotator "TA"]
[PlyCount "107"]
[EventDate "2024.09.05"]
[EventType "team-tourn"]
[EventCountry "HUN"]
[SourceTitle "playchess.com"]
[Source "ChessBase"]
[SourceQuality "1"]
[WhiteTeam "Kyrgyzstan"]
[BlackTeam "Ukraine"]
[WhiteTeamCountry "KGZ"]
[BlackTeamCountry "UKR"]
[TimeControl "40/5400+30:1800+30"]

{[%evp 18,107,5,0,8,0,27,0,0,0,0,0,0,-9,0,-24,0,-20,-25,-51,-41,-47,-43,-43,-36,-52,-52,-35,-23,-48,0,-116,-45,-80,-47,-44,-30,-42,-35,-35,-36,-41,-9,-14,-8,-12,-3,-18,-12,-21,0,0,0,0,0,0,0,0,0,-41,0,0,0,0,0,0,0,0,0,0,0,0,0,0,0,0,0,0,0,0,0,0,0,0,0,0,0,0,0,0,0,0]} 1. c4 {[%emt 0:00:04]} c6 {[%emt 0:00:26]} 2. Nf3 {[%emt 0:00:44]} d5 {[%emt 0:00:12]} 3. e3 {[%emt 0:00:19]} Nf6 {[%emt 0:00:37]} 4. Nc3 {[%emt 0:00:58]} e6 {[%emt 0:01:28]} 5. b3 {[%emt 0:03:22]} Bd6 {[%emt 0:06:35]} 6. Bb2 {[%emt 0:02:53]} O-O {[%emt 0:04:22]} 7. Be2 {[%emt 0:05:37]} b6 {[%emt 0:10:45]} 8. O-O {[%emt 0:02:15]} Bb7 {[%emt 0:00:40]} 9. d4 {[%emt 0:17:25]} Nbd7 {[%emt 0:01:10]} 10. Rc1 {[%emt 0:01:36]} Qe7 {[%emt 0:12:25]} 11. Qc2 {[%emt 0:07:27]} h6 {[%emt 0:22:01]} 12. e4 {[%emt 0:12:53]} Nxe4 {[%emt 0:00:58]} 13. Nxe4 {[%emt 0:00:06]} dxe4 {[%emt 0:00:03]} 14. Qxe4 {[%emt 0:00:30][%cal Oc4c5]} Nf6 {[%emt 0:00:59]} 15. Qh4 {[%emt 0:05:26][%cal Oc4c5]} c5 {[%emt 0:08:13]} 16. Ne5 {[%emt 0:12:23]} Rad8 {[%emt 0:08:07]} 17. Rcd1 {[%emt 0:05:41]} cxd4 {[%emt 0:09:08]} 18. Bxd4 {[%emt 0:01:08]} Qc7 {[%emt 0:00:36]} 19. Ng4 {[%emt 0:08:44]} Nxg4 {[%emt 0:02:24]} 20. Bxg4 {[%emt 0:00:38]} Rd7 {[%emt 0:04:06]} 21. Be2 {[%emt 0:06:07]} Rfd8 {[%emt 0:01:55][%cal Od6h2]} 22. Be3 {[%emt 0:00:34]} f5 {[%emt 0:02:07]} 23. Qh5 {[%emt 0:02:28]} (23. h3 {feels hotter.} Be4 24. Kh1 Kh7 25. Bg5) 23... Be4 {[%emt 0:01:10]} (23... Kh7 $15) 24. f3 {[%emt 0:02:26] [#]} (24. g3 $11) 24... Bc6 {[%emt 0:01:22]} (24... Bc2 $1 $17 {[%cal Rc2d1]} 25. Rc1 Bc5 26. Rxc2 Bxe3+ 27. Kh1 Kh7) 25. Kh1 {[%emt 0:00:17]} Kh7 {[%emt 0:00:22] Inhibits Qg6+.} 26. Qh4 $1 {[%emt 0:00:54] Prevents Bf4} Be5 {[%emt 0:00:35]} 27. Bc1 {[%emt 0:00:34]} Rxd1 {[%emt 0:00:26]} 28. Bxd1 {[%emt 0:00:25] White is weak on the dark squares} Bf6 {[%emt 0:00:46]} 29. Qf2 {[%emt 0:00:22]} e5 {[%emt 0:00:28]} 30. Bc2 {[%emt 0:00:19]} g6 {[%emt 0:00:09]} 31. h3 {[%emt 0:00:34]} Qe7 {[%emt 0:00:21]} 32. Qe2 {[%emt 0:00:37]} Re8 {[%emt 0:00:56]} 33. Bb2 {[%emt 0:00:36]} e4 {[%emt 0:00:30]} 34. Bxf6 {[%emt 0:00:26]} Qxf6 {[%emt 0:00:04]} 35. fxe4 {[%emt 0:00:33]} Qe5 {[%emt 0:00:51]} 36. Qd2 {[%emt 0:00:33]} Bxe4 {[%emt 0:00:14]} 37. Rd1 {[%emt 0:00:34]} Re7 {[%emt 0:00:53]} 38. Qf2 {[%emt 0:00:30]} Qc3 {[%emt 0:00:34]} 39. Bxe4 {[%emt 0:00:29] The position is equal.} fxe4 $11 {[%emt 0:00:18][%mdl 4096] Endgame. KQR-KQR} 40. Qf8 {[%emt 0:00:30]} Qe5 {[%emt 0:00:35]} 41. Rd5 {[%emt 0:05:09]} Qg7 {[%emt 0:07:50]} 42. Qxg7+ {[%emt 0:04:57]} Kxg7 {[%emt 0:00:01] KR-KR} 43. Kg1 {[%emt 0:01:00]} e3 {[%emt 0:00:11] [#] ( -> ...e2)} 44. Kf1 {[%emt 0:06:09]} Rf7+ $1 {[%emt 0:00:19]} 45. Ke2 {[%emt 0:02:47]} Rf2+ $1 {[%emt 0:00:05]} 46. Kxe3 {[%emt 0:00:07]} Rxa2 {[%emt 0:00:07]} 47. Kf3 {[%emt 0:04:51]} Rb2 {[%emt 0:08:55]} 48. Rd3 {[%emt 0:03:37]} Kf6 {[%emt 0:00:42]} 49. h4 {[%emt 0:01:43]} Ke5 {[%emt 0:01:58]} 50. Rd5+ {[%emt 0:00:42]} Ke6 {[%emt 0:00:32]} 51. Rd3 {[%emt 0:00:35]} Ke5 {[%emt 0:09:35]} 52. Rd5+ {[%emt 0:00:08]} Ke6 {[%emt 0:00:19]} 53. Rd3 {[%emt 0:00:05]} Ke5 {[%emt 0:00:34]} 54. Rd5+ {[%emt 0:00:06] Weighted Error Value: White=0.13 (very precise) /Black=0.09 (flawless) .  Mistake:       	White=1     	Black=2      Inaccurate:     	White=4     	Black=4      OK:         	White=13    	Black=16     Best:        	White=1     	Black=1      Strong:       	White=1     	Black=2} 1/2-1/2

[Event "45th FIDE Womens Olympiad 2024"]
[Site "Budapest"]
[Date "2024.09.11"]
[Round "1.22"]
[White "Buksa, Nataliya"]
[Black "Zhanybekova, Begimay"]
[Result "1-0"]
[ECO "B49"]
[WhiteElo "2387"]
[BlackElo "1784"]
[Annotator "TA"]
[PlyCount "129"]
[EventDate "2024.09.05"]
[EventType "team-tourn"]
[EventCountry "HUN"]
[SourceTitle "playchess.com"]
[Source "ChessBase"]
[SourceQuality "1"]
[WhiteTeam "Ukraine"]
[BlackTeam "Kyrgyzstan"]
[WhiteTeamCountry "UKR"]
[BlackTeamCountry "KGZ"]
[TimeControl "40/5400+30:1800+30"]

{[%evp 27,129,46,32,32,26,24,30,27,27,7,57,37,44,50,89,27,37,27,56,58,68,63,69,56,87,64,65,64,56,54,56,61,47,31,60,24,70,35,75,0,0,0,0,0,0,0,0,-215,0,0,0,-18,-15,-12,-19,-13,0,0,0,0,0,0,0,-5,-14,-63,0,0,0,0,0,0,0,0,165,144,222,168,204,203,386,388,391,265,265,239,743,610,4132,1579,4663,4641,4689,4689,4674,4641,4634,4634,770,438,1681,716,716,716]} 1. e4 {[%emt 0:00:02]} c5 {[%emt 0:00:05]} 2. Nf3 {[%emt 0:00:17]} e6 {[%emt 0:00:09]} 3. d4 {[%emt 0:00:09]} cxd4 {[%emt 0:00:05]} 4. Nxd4 {[%emt 0:00:03]} Nc6 {[%emt 0:00:08]} 5. Nc3 {[%emt 0:00:06]} Qc7 {[%emt 0:00:19]} 6. Be2 {[%emt 0:00:20]} a6 {[%emt 0:00:08]} 7. Be3 {[%emt 0:00:23]} Nf6 {[%emt 0:00:10]} 8. O-O {[%emt 0:00:14]} Bb4 {[%emt 0:00:11]} 9. Na4 {[%emt 0:01:57]} Be7 {[%emt 0:00:14]} 10. Nxc6 {[%emt 0:02:28]} bxc6 {[%emt 0:00:07]} 11. Nb6 {[%emt 0:00:03]} Rb8 {[%emt 0:00:06]} 12. Nxc8 {[%emt 0:00:04]} Qxc8 {[%emt 0:00:04]} 13. Bd4 {[%emt 0:07:22]} c5 {[%emt 0:01:49]} 14. Be5 {[%emt 0:02:51]} Rb6 {[%emt 0:00:07]} 15. Bf3 {[%emt 0:07:05]} O-O {[%emt 0:04:39]} 16. a4 {[%emt 0:04:38][%cal Ba2a4,Ba4a5][%mdl 32]} d6 {[%emt 0:09:09]} 17. a5 {[%emt 0:03:26] White has an edge.} Rb8 {[%emt 0:00:02]} 18. Bc3 {[%emt 0:04:36]} Nd7 {[%emt 0:08:03]} ({Black should try} 18... Rd8 $11) 19. Be2 $14 {[%emt 0:00:48]} Nf6 {[%emt 0:26:30]} 20. Qd3 {[%emt 0:08:53][%cal Oe4e5]} Rd8 {[%emt 0:04:01]} 21. Rfe1 {[%emt 0:13:44]} (21. Qxa6 Qxa6 22. Bxa6 Nxe4 $11) ({White should play} 21. e5 $16 Nd5 22. Qxa6) 21... Ra8 $11 {[%emt 0:01:29]} 22. Qg3 {[%emt 0:01:01]} Rd7 {[%emt 0:11:03]} 23. Rad1 {[%emt 0:03:36]} Qd8 {[%emt 0:05:04]} 24. Bc4 {[%emt 0:02:34]} Bf8 {[%emt 0:04:42]} 25. Qf3 {[%emt 0:08:03]} Ne8 {[%emt 0:00:30] Black is weak on the light squares} 26. Qh3 {[%emt 0:11:26]} Nc7 {[%emt 0:02:21]} 27. f4 {[%emt 0:00:44] White has more active pieces.} Nb5 {[%emt 0:03:21]} 28. Bd2 {[%emt 0:00:36]} d5 {[%emt 0:03:17]} 29. exd5 {[%emt 0:00:57]} exd5 {[%emt 0:00:02]} 30. Bd3 {[%emt 0:00:04][%csl Gd3][%cal Rh3h7]} g6 {[%emt 0:00:07]} 31. f5 {[%emt 0:02:45]} Bg7 {[%emt 0:01:29]} (31... Re7 $1 $11) 32. Rf1 {[%emt 0:04:01]} c4 {[%emt 0:03:55]} 33. fxg6 {[%emt 0:00:21]} (33. Be2 $1 $16) 33... hxg6 {[%emt 0:00:01]} 34. Bg5 {[%emt 0:02:34]} Qxg5 {[%emt 0:08:41]} 35. Qxd7 {[%emt 0:00:03]} Rf8 {[%emt 0:00:05]} (35... cxd3 $2 36. Qxf7+ Kh8 37. Rxd3 $18) 36. Bxg6 {[%emt 0:02:31]} Qxg6 {[%emt 0:00:48]} 37. Qxd5 {[%emt 0:00:46]} (37. Rxd5 $11 {and White stays safe.} Qxc2 38. Qg4) 37... Qxc2 $2 {[%emt 0:01:07]} (37... Bxb2 38. Qxc4 Qe6 39. Qxe6 fxe6 40. Rxf8+ Kxf8 41. c4 $15) (37... c3 $19 38. b4 (38. bxc3 $2 Nxc3 39. Qc4 Nxd1 $19) 38... Qxc2) 38. Rf2 {[%emt 0:00:47]} Qb3 {[%emt 0:02:35][%cal Ob3e3]} 39. Kh1 {[%emt 0:00:22]} Nc7 {[%emt 0:00:47][%cal Bb5c7,Bc7e6,Be6c5,Bc5e4,Be4f6,Bf6e8,Be8d6][%mdl 32]} (39... Bxb2 $6 40. Rb1 Qd3 41. Qxd3 cxd3 42. Rfxb2 $16 (42. Rbxb2 Rd8 $16)) 40. Qd7 {[%emt 0:02:01]} Ne6 {[%emt 0:02:25][%cal Oe6c5] ...Nc5! would now be deadly.} (40... Bxb2 $2 41. Rb1 Qe3 42. Rfxb2 $18) 41. Rdf1 {[%emt 0:31:39][%cal Rf2f7]} Qd3 {[%emt 0:30:11]} (41... Bxb2 $6 42. Rxf7 $16) 42. Qb7 {[%emt 0:00:00]} Nc5 {[%emt 0:00:00]} 43. Qc6 {[%emt 0:00:00]} Ne4 {[%emt 0:00:00]} 44. Rf3 {[%emt 0:00:00]} Qe2 {[%emt 0:00:00]} 45. Qd5 {[%emt 0:00:00] Repels Nd2} Nf6 {[%emt 0:00:00]} (45... Bxb2 $2 46. Rxf7 $18 (46. Rf4 Bg7 $18) (46. Rf4 Bg7 $18)) 46. Qb7 {[%emt 0:00:00]} (46. Rxf6 $2 Bxf6 47. Qf5 Bxb2 $19) (46. Qg5 $11 Nd7 (46... Ne4 47. Qd5 $17) 47. Qf5) 46... Rd8 {[%emt 0:00:00]} (46... Qe6 $15 47. Rf4 Nd7) 47. Qxa6 {[%emt 0:00:00]} Rd1 {[%emt 0:00:00]} 48. Qc8+ {[%emt 0:00:00]} Ne8 {[%emt 0:00:00]} 49. Qf5 {[%emt 0:00:00]} Nd6 {[%emt 0:00:00]} ({Not} 49... Bxb2 50. Qxf7+ Kh8 51. Rh3+) 50. Qf4 {[%emt 0:00:00] Hoping for Rxd1. Dancing on a razor blade.} Bxb2 $2 {[%emt 0:00:00] [#] White leaves nothing to chance now.} (50... Be5 $11 51. Qg4+ Bg7) 51. Rxd1 $1 $18 {[%emt 0:00:00]} Qxd1+ {[%emt 0:00:00]} 52. Rf1 {[%emt 0:00:00]} Qd3 {[%emt 0:01:37]} 53. a6 {[%emt 0:00:00][%mdl 1024] Threatens to win with a7. White has strong compensation.} Bd4 {[%emt 0:00:44] [#]} (53... Be5 {was called for.} 54. Qf3 Qxf3 55. gxf3 (55. Rxf3 Nb5 $16) 55... Nb5) 54. Qg4+ $1 {[%emt 0:00:00]} Bg7 {[%emt 0:00:22]} 55. Rd1 {[%emt 0:00:00]} Qa3 {[%emt 0:00:02]} 56. a7 {[%emt 0:00:00]} f5 $2 {[%emt 0:02:24]} (56... Qxa7 57. Rxd6 Qe7) 57. Qe2 {[%emt 0:01:52][%cal Od1d6] Strongly threatening Rxd6! White is clearly winning.} Qxa7 {[%emt 0:01:10]} 58. Rxd6 {[%emt 0:00:10][%mdl 4096] Endgame. KQR-KQB} Qf7 {[%emt 0:00:31]} 59. Rc6 {[%emt 0:03:31]} c3 {[%emt 0:00:11]} 60. Qc4 {[%emt 0:01:24]} Qxc4 {[%emt 0:00:49]} 61. Rxc4 {[%emt 0:00:05]} Kf7 {[%emt 0:00:15]} 62. Rc7+ {[%emt 0:00:24]} Kg6 {[%emt 0:00:07]} 63. g3 {[%emt 0:00:18] Black must now prevent Kg2.} Be5 {[%emt 0:00:52]} (63... f4 $142 64. gxf4 Bf8) 64. Rc6+ {[%emt 0:00:04]} Kg5 {[%emt 0:00:07]} 65. Kg2 {[%emt 0:00:17] Weighted Error Value: White=0.26 (precise) /Black=0.28 (precise) .  Loses game:     	White=1     	Black=1      Missed win:     	---       	Black=1      Mistake:       	White=3     	Black=5      Inaccurate:     	White=2     	Black=3      OK:         	White=18    	Black=18     Best:        	White=5     	Black=4      Strong:       	White=2     	---} 1-0

[Event "45th FIDE Womens Olympiad 2024"]
[Site "Budapest"]
[Date "2024.09.11"]
[Round "1.23"]
[White "Lesbekova, Assel"]
[Black "Gaponenko, Inna"]
[Result "0-1"]
[ECO "B02"]
[WhiteElo "1903"]
[BlackElo "2324"]
[Annotator "ChessBase"]
[PlyCount "78"]
[EventDate "2024.09.05"]
[EventType "team-tourn"]
[EventCountry "HUN"]
[SourceTitle "playchess.com"]
[Source "ChessBase"]
[SourceQuality "1"]
[WhiteTeam "Kyrgyzstan"]
[BlackTeam "Ukraine"]
[WhiteTeamCountry "KGZ"]
[BlackTeamCountry "UKR"]
[TimeControl "40/5400+30:1800+30"]

1. e4 {[%emt 0:00:04]} Nf6 {[%emt 0:00:05]} 2. Nc3 {[%emt 0:01:46]} d5 {[%emt 0:01:13]} 3. exd5 {[%emt 0:03:49]} Nxd5 {[%emt 0:00:06]} 4. Nxd5 {[%emt 0:03:09]} Qxd5 {[%emt 0:00:07]} 5. Qf3 {[%emt 0:00:23]} Qxf3 {[%emt 0:11:04]} 6. Nxf3 {[%emt 0:00:19]} Nc6 {[%emt 0:00:07]} 7. Bb5 {[%emt 0:09:46]} Bd7 {[%emt 0:00:06]} 8. d4 {[%emt 0:03:08]} O-O-O {[%emt 0:41:03]} 9. c3 {[%emt 0:04:19]} f6 {[%emt 0:02:27]} 10. Be3 {[%emt 0:09:19]} e6 {[%emt 0:05:55]} 11. b4 {[%emt 0:09:11]} Bd6 {[%emt 0:06:52]} 12. Bc4 {[%emt 0:04:38]} Ne7 {[%emt 0:00:58]} 13. O-O {[%emt 0:02:14]} Nd5 {[%emt 0:02:21]} 14. Bd2 {[%emt 0:01:15]} g5 {[%emt 0:01:40]} 15. Rfd1 {[%emt 0:15:58]} c6 {[%emt 0:15:16]} 16. Bb3 {[%emt 0:05:54]} g4 {[%emt 0:00:27]} 17. Ne1 {[%emt 0:00:22]} e5 {[%emt 0:00:47]} 18. Nd3 {[%emt 0:08:58]} Bf5 {[%emt 0:01:22]} 19. c4 {[%emt 0:02:20]} Bxd3 {[%emt 0:04:31]} 20. cxd5 {[%emt 0:00:07]} exd4 {[%emt 0:00:20]} 21. dxc6 {[%emt 0:02:46]} Be2 {[%emt 0:01:57]} 22. Re1 {[%emt 0:03:00]} d3 {[%emt 0:00:07]} 23. b5 {[%emt 0:00:29]} Rhe8 {[%emt 0:02:00]} 24. cxb7+ {[%emt 0:04:31]} Kxb7 {[%emt 0:00:02]} 25. Bd5+ {[%emt 0:00:02]} Kb8 {[%emt 0:00:12]} 26. Bc6 {[%emt 0:00:30]} Re5 {[%emt 0:00:45]} 27. a4 {[%emt 0:01:20]} Rf5 {[%emt 0:01:17]} 28. Ba5 {[%emt 0:01:55]} Bc7 {[%emt 0:00:12]} 29. Bd2 {[%emt 0:02:53]} Bb6 {[%emt 0:00:08]} 30. a5 {[%emt 0:00:30]} Bxf2+ {[%emt 0:00:32]} 31. Kh1 {[%emt 0:00:04]} Bxe1 {[%emt 0:00:51]} 32. Rxe1 {[%emt 0:00:06]} Rd4 {[%emt 0:00:36]} 33. h3 {[%emt 0:01:21]} g3 {[%emt 0:00:42]} 34. a6 {[%emt 0:00:31]} Rdf4 {[%emt 0:00:33]} 35. Bf3 {[%emt 0:00:29]} Bxf3 {[%emt 0:00:36]} 36. Re8+ {[%emt 0:00:31]} Kc7 {[%emt 0:00:01]} 37. Bxf4+ {[%emt 0:00:03]} Rxf4 {[%emt 0:00:05]} 38. b6+ {[%emt 0:00:56]} axb6 {[%emt 0:01:12]} 39. a7 {[%emt 0:00:33]} d2 {[%emt 0:00:10]} 0-1

[Event "45th FIDE Womens Olympiad 2024"]
[Site "Budapest"]
[Date "2024.09.11"]
[Round "1.23"]
[White "Nassr, Rania"]
[Black "Henry, Zahidu"]
[Result "1-0"]
[ECO "D02"]
[WhiteElo "1866"]
[BlackElo "1450"]
[Annotator "NA"]
[PlyCount "117"]
[EventDate "2024.09.05"]
[EventType "team-tourn"]
[EventCountry "HUN"]
[SourceTitle "playchess.com"]
[Source "ChessBase"]
[SourceQuality "1"]
[WhiteTeam "Algeria"]
[BlackTeam "Dominica"]
[WhiteTeamCountry "ALG"]
[BlackTeamCountry "DMA"]
[TimeControl "40/5400+30:1800+30"]

1. d4 d5 2. Nf3 Nf6 3. g3 g6 4. Bg2 Bg7 5. O-O O-O 6. Nbd2 Nc6 7. e3 Re8 8. Ne5 e6 9. f4 Ne7 10. b3 c6 11. Bb2 Nf5 12. Qe2 Bd7 13. c4 b6 14. g4 Ne7 15. Rac1 Rc8 16. c5 b5 17. g5 Nh5 18. Nxd7 Qxd7 19. Bf3 f6 20. Bxh5 gxh5 21. Qxh5 Ng6 22. Rf3 fxg5 23. Rh3 Bf8 24. Qxg5 Qf7 25. Nf3 Be7 26. Qg2 Bf6 27. Rg3 Rc7 28. Rf1 Kf8 29. Ne5 Nh4 30. Nxf7 Nxg2 31. Nd6 Nxe3 32. Rxe3 Rg7+ 33. Kf2 Bh4+ 34. Kf3 Ree7 35. Re2 Rg8 36. f5 exf5 37. Rxe7 Bxe7 38. Nxf5 Bd8 39. Bc1 Rg6 40. Ke2 Ke8 41. Nd6+ Kd7 42. Rf7+ Ke6 43. Rf3 Rg2+ 44. Rf2 Rxf2+ 45. Kxf2 Bc7 46. Bf4 a5 47. Kf3 Bxd6 48. Bxd6 Kf5 49. Bc7 a4 50. bxa4 bxa4 51. Ke3 h5 52. Kd3 Ke6 53. Kc3 Kf5 54. Kb4 Ke4 55. Be5 Kd3 56. Kxa4 Kc4 57. Ka5 h4 58. a4 h3 59. Kb6 1-0